[Event "Titled Tuesday Blitz January 18 2022"]
[White "Gontcharov, Vladislav"]
[Black "Krivonosov, Oleg"]
[WhiteFideId "4123492"]
[BlackFideId "11600349"]
[WhiteElo "2503"]
[BlackElo "2455"]
[Result "1-0"]
[Round "03"]
[TimeControl "180+1"]
[Date "2022.01.18"]
[WhiteClock "0:00:26"]
[BlackClock "0:00:09"]

1. Nf3 {[%clk 0:03:00]}  d5 {[%clk 0:02:59]} 2. c4 {[%clk 0:03:00]}  e6 {[%clk 0:02:57]} 3. d4 {[%clk 0:02:59]}  Nf6 {[%clk 0:02:57]} 4. Nc3 {[%clk 0:02:59]}  Be7 {[%clk 0:02:56]} 5. cxd5 {[%clk 0:02:59]}  exd5 {[%clk 0:02:55]} 6. Bg5 {[%clk 0:02:59]}  c6 {[%clk 0:02:55]} 7. e3 {[%clk 0:02:59]}  Bf5 {[%clk 0:02:54]} 8. Be2 {[%clk 0:02:53]}  Nbd7 {[%clk 0:02:50]} 9. O-O {[%clk 0:02:52]}  h6 {[%clk 0:02:49]} 10. Bh4 {[%clk 0:02:51]}  O-O {[%clk 0:02:48]} 11. a3 {[%clk 0:02:50]}  a5 {[%clk 0:02:46]} 12. Nd2 {[%clk 0:02:45]}  Re8 {[%clk 0:02:43]} 13. Bg3 {[%clk 0:02:29]}  Nb6 {[%clk 0:02:36]} 14. Qc1 {[%clk 0:02:19]}  Bd6 {[%clk 0:02:33]} 15. b3 {[%clk 0:02:11]}  Bxg3 {[%clk 0:02:30]} 16. hxg3 {[%clk 0:02:09]}  Nc8 {[%clk 0:02:16]} 17. b4 {[%clk 0:02:01]}  axb4 {[%clk 0:02:14]} 18. axb4 {[%clk 0:02:01]}  Nd6 {[%clk 0:02:14]} 19. Rxa8 {[%clk 0:02:01]}  Qxa8 {[%clk 0:02:12]} 20. b5 {[%clk 0:02:01]}  Nfe4 {[%clk 0:02:02]} 21. Ndxe4 {[%clk 0:01:56]}  Nxe4 {[%clk 0:02:03]} 22. bxc6 {[%clk 0:01:50]}  bxc6 {[%clk 0:02:00]} 23. Nxe4 {[%clk 0:01:46]}  Bxe4 {[%clk 0:01:59]} 24. Qc5 {[%clk 0:01:46]}  Rb8 {[%clk 0:01:42]} 25. Bf3 {[%clk 0:01:42]}  Bxf3 {[%clk 0:01:40]} 26. gxf3 {[%clk 0:01:42]}  Qb7 {[%clk 0:01:40]} 27. Kg2 {[%clk 0:01:38]}  h5 {[%clk 0:01:35]} 28. Qd6 {[%clk 0:01:35]}  Rc8 {[%clk 0:01:32]} 29. Rh1 {[%clk 0:01:31]}  Qc7 {[%clk 0:01:20]} 30. Qxc7 {[%clk 0:01:28]}  Rxc7 {[%clk 0:01:21]} 31. Rxh5 {[%clk 0:01:28]}  g6 {[%clk 0:01:21]} 32. Rh1 {[%clk 0:01:27]}  c5 {[%clk 0:01:18]} 33. Rc1 {[%clk 0:01:25]}  c4 {[%clk 0:01:17]} 34. e4 {[%clk 0:01:20]}  c3 {[%clk 0:01:12]} 35. e5 {[%clk 0:01:05]}  Rc4 {[%clk 0:00:54]} 36. Kf1 {[%clk 0:01:05]}  Rxd4 {[%clk 0:00:49]} 37. Rxc3 {[%clk 0:01:04]}  Kg7 {[%clk 0:00:47]} 38. Ke2 {[%clk 0:01:02]}  Ra4 {[%clk 0:00:45]} 39. Rd3 {[%clk 0:01:01]}  Ra5 {[%clk 0:00:43]} 40. Ke3 {[%clk 0:00:59]}  g5 {[%clk 0:00:43]} 41. f4 {[%clk 0:00:55]}  Kg6 {[%clk 0:00:40]} 42. fxg5 {[%clk 0:00:54]}  Kxg5 {[%clk 0:00:40]} 43. f4+ {[%clk 0:00:52]}  Kf5 {[%clk 0:00:37]} 44. Kd4 {[%clk 0:00:49]}  Ke6 {[%clk 0:00:36]} 45. Rb3 {[%clk 0:00:49]}  Ra4+ {[%clk 0:00:36]} 46. Kd3 {[%clk 0:00:49]}  Ra6 {[%clk 0:00:26]} 47. Ke3 {[%clk 0:00:46]}  Kf5 {[%clk 0:00:19]} 48. Kf3 {[%clk 0:00:46]}  Ke6 {[%clk 0:00:18]} 49. g4 {[%clk 0:00:44]}  Rc6 {[%clk 0:00:17]} 50. Re3 {[%clk 0:00:37]}  d4 {[%clk 0:00:14]} 51. Ra3 {[%clk 0:00:36]}  Kd5 {[%clk 0:00:14]} 52. Ra5+ {[%clk 0:00:34]}  Kc4 {[%clk 0:00:12]} 53. Ke4 {[%clk 0:00:27]}  d3 {[%clk 0:00:10]} 54. Ra4+ {[%clk 0:00:26]}  Kc3 {[%clk 0:00:09]} 55. Ra3+ {[%clk 0:00:26]} 1-0


[Site "https://www.chess.com"]

[Event "Titled Tuesday Blitz January 18 2022"]
[White "Gracia Alvarez, Gerardo Antonio"]
[Black "Pranav, V"]
[WhiteFideId "5109124"]
[BlackFideId "25060783"]
[WhiteElo "2139"]
[BlackElo "2349"]
[Result "0-1"]
[Round "03"]
[TimeControl "180+1"]
[Date "2022.01.18"]
[WhiteClock "0:00:14"]
[BlackClock "0:00:55"]

1. e4 {[%clk 0:03:00]}  e5 {[%clk 0:02:59]} 2. Nf3 {[%clk 0:03:00]}  Nc6 {[%clk 0:02:59]} 3. Bc4 {[%clk 0:03:00]}  Nf6 {[%clk 0:02:59]} 4. d3 {[%clk 0:03:00]}  Be7 {[%clk 0:02:59]} 5. O-O {[%clk 0:02:59]}  O-O {[%clk 0:02:59]} 6. Nc3 {[%clk 0:02:55]}  d6 {[%clk 0:02:59]} 7. a3 {[%clk 0:02:54]}  Be6 {[%clk 0:02:58]} 8. Nd5 {[%clk 0:02:46]}  h6 {[%clk 0:02:54]} 9. c3 {[%clk 0:02:44]}  a6 {[%clk 0:02:50]} 10. Re1 {[%clk 0:02:39]}  Nd7 {[%clk 0:02:38]} 11. Ba2 {[%clk 0:02:32]}  Re8 {[%clk 0:02:27]} 12. d4 {[%clk 0:02:29]}  Bf8 {[%clk 0:02:21]} 13. h3 {[%clk 0:02:13]}  exd4 {[%clk 0:01:54]} 14. cxd4 {[%clk 0:02:10]}  Bxd5 {[%clk 0:01:54]} 15. Bxd5 {[%clk 0:01:59]}  Nf6 {[%clk 0:01:53]} 16. Bxc6 {[%clk 0:01:41]}  bxc6 {[%clk 0:01:52]} 17. Qc2 {[%clk 0:01:41]}  Qd7 {[%clk 0:01:49]} 18. Bd2 {[%clk 0:01:37]}  Rab8 {[%clk 0:01:31]} 19. Rac1 {[%clk 0:01:37]}  c5 {[%clk 0:01:15]} 20. dxc5 {[%clk 0:01:33]}  dxc5 {[%clk 0:01:15]} 21. Bc3 {[%clk 0:01:32]}  Qe6 {[%clk 0:01:13]} 22. Re2 {[%clk 0:01:04]}  Nh5 {[%clk 0:01:11]} 23. Re3 {[%clk 0:00:49]}  Nf4 {[%clk 0:01:09]} 24. Nh2 {[%clk 0:00:41]}  c4 {[%clk 0:01:01]} 25. Bd4 {[%clk 0:00:35]}  Qg6 {[%clk 0:00:55]} 26. Rg3 {[%clk 0:00:17]}  Qxe4 {[%clk 0:00:54]} 27. Qxe4 {[%clk 0:00:14]}  Rxe4 {[%clk 0:00:55]} 0-1


[Site "https://www.chess.com"]

[Event "Titled Tuesday Blitz January 18 2022"]
[White "Grunberg, Mihai-Lucian"]
[Black "Lenderman, Aleksandr"]
[WhiteFideId "1204149"]
[BlackFideId "2021285"]
[WhiteElo "2364"]
[BlackElo "2651"]
[Result "0-1"]
[Round "03"]
[TimeControl "180+1"]
[Date "2022.01.18"]
[WhiteClock "0:00:12"]
[BlackClock "0:01:26"]

1. Nf3 {[%clk 0:03:00]}  e6 {[%clk 0:03:00]} 2. c4 {[%clk 0:02:59]}  b6 {[%clk 0:02:57]} 3. g3 {[%clk 0:02:59]}  Bb7 {[%clk 0:02:56]} 4. Bg2 {[%clk 0:03:00]}  Nf6 {[%clk 0:02:52]} 5. O-O {[%clk 0:03:00]}  g6 {[%clk 0:02:52]} 6. d4 {[%clk 0:03:00]}  Bg7 {[%clk 0:02:49]} 7. Nc3 {[%clk 0:03:01]}  Ne4 {[%clk 0:02:48]} 8. Bd2 {[%clk 0:03:00]}  O-O {[%clk 0:02:47]} 9. Rc1 {[%clk 0:03:00]}  d6 {[%clk 0:02:31]} 10. Be1 {[%clk 0:02:51]}  Nd7 {[%clk 0:02:28]} 11. d5 {[%clk 0:02:51]}  Nxc3 {[%clk 0:02:27]} 12. Bxc3 {[%clk 0:02:51]}  e5 {[%clk 0:02:27]} 13. b4 {[%clk 0:02:48]}  a5 {[%clk 0:02:25]} 14. a3 {[%clk 0:02:47]}  axb4 {[%clk 0:02:17]} 15. axb4 {[%clk 0:02:48]}  Ra3 {[%clk 0:02:15]} 16. Bb2 {[%clk 0:02:46]}  Ra2 {[%clk 0:02:14]} 17. Qb3 {[%clk 0:02:42]}  Ra8 {[%clk 0:02:05]} 18. e4 {[%clk 0:02:34]}  f5 {[%clk 0:02:02]} 19. Ne1 {[%clk 0:02:32]}  f4 {[%clk 0:02:02]} 20. Nd3 {[%clk 0:02:26]}  f3 {[%clk 0:02:00]} 21. Bh3 {[%clk 0:02:25]}  Nf6 {[%clk 0:02:00]} 22. Rfe1 {[%clk 0:02:22]}  Bc8 {[%clk 0:01:59]} 23. Bf1 {[%clk 0:02:18]}  Ng4 {[%clk 0:01:57]} 24. c5 {[%clk 0:02:16]}  Qg5 {[%clk 0:01:50]} 25. cxb6 {[%clk 0:02:07]}  cxb6 {[%clk 0:01:49]} 26. Rc7 {[%clk 0:01:54]}  Qh5 {[%clk 0:01:48]} 27. h3 {[%clk 0:01:45]}  Nf6 {[%clk 0:01:46]} 28. h4 {[%clk 0:01:31]}  g5 {[%clk 0:01:42]} 29. Nxe5 {[%clk 0:00:56]}  dxe5 {[%clk 0:01:41]} 30. d6+ {[%clk 0:00:53]}  Kh8 {[%clk 0:01:38]} 31. Bxe5 {[%clk 0:00:50]}  gxh4 {[%clk 0:01:39]} 32. Qc3 {[%clk 0:00:31]}  hxg3 {[%clk 0:01:35]} 33. Bxg3 {[%clk 0:00:19]}  Bh3 {[%clk 0:01:28]} 34. Bb5 {[%clk 0:00:12]}  Qxb5 {[%clk 0:01:26]} 0-1


[Site "https://www.chess.com"]

[Event "Titled Tuesday Blitz January 18 2022"]
[White "Guz, Ari"]
[Black "Kaganskiy, Gleb"]
[WhiteFideId "2825759"]
[BlackFideId "4132025"]
[WhiteElo "1913"]
[BlackElo "2165"]
[Result "1-0"]
[Round "03"]
[TimeControl "180+1"]
[Date "2022.01.18"]
[WhiteClock "0:00:21"]
[BlackClock "0:00:41"]

1. e4 {[%clk 0:03:00]}  e5 {[%clk 0:02:57]} 2. Nf3 {[%clk 0:03:00]}  Nc6 {[%clk 0:02:57]} 3. Bb5 {[%clk 0:03:01]}  a6 {[%clk 0:02:57]} 4. Ba4 {[%clk 0:03:01]}  Nf6 {[%clk 0:02:55]} 5. O-O {[%clk 0:03:00]}  Be7 {[%clk 0:02:54]} 6. c3 {[%clk 0:03:00]}  b5 {[%clk 0:02:51]} 7. Bc2 {[%clk 0:03:00]}  O-O {[%clk 0:02:45]} 8. d4 {[%clk 0:02:59]}  d6 {[%clk 0:02:39]} 9. h3 {[%clk 0:02:59]}  Re8 {[%clk 0:02:33]} 10. Be3 {[%clk 0:02:54]}  Bf8 {[%clk 0:02:31]} 11. d5 {[%clk 0:02:54]}  Nb8 {[%clk 0:02:28]} 12. a4 {[%clk 0:02:52]}  Bb7 {[%clk 0:02:26]} 13. axb5 {[%clk 0:02:50]}  axb5 {[%clk 0:02:27]} 14. Rxa8 {[%clk 0:02:50]}  Bxa8 {[%clk 0:02:27]} 15. Na3 {[%clk 0:02:49]}  c6 {[%clk 0:02:17]} 16. dxc6 {[%clk 0:02:44]}  Bxc6 {[%clk 0:02:18]} 17. Nd2 {[%clk 0:02:44]}  Nbd7 {[%clk 0:02:15]} 18. Qe2 {[%clk 0:02:44]}  Qb8 {[%clk 0:02:12]} 19. b4 {[%clk 0:02:35]}  d5 {[%clk 0:02:11]} 20. exd5 {[%clk 0:02:33]}  Nxd5 {[%clk 0:02:09]} 21. Rc1 {[%clk 0:02:01]}  Nxe3 {[%clk 0:02:02]} 22. Qxe3 {[%clk 0:02:01]}  g6 {[%clk 0:01:59]} 23. Be4 {[%clk 0:01:58]}  Qb7 {[%clk 0:01:53]} 24. Bxc6 {[%clk 0:01:51]}  Qxc6 {[%clk 0:01:53]} 25. Qe4 {[%clk 0:01:51]}  Qa6 {[%clk 0:01:44]} 26. Ra1 {[%clk 0:01:43]}  Bg7 {[%clk 0:01:29]} 27. Qd5 {[%clk 0:01:39]}  Nf6 {[%clk 0:01:27]} 28. Qxb5 {[%clk 0:01:39]}  Qe6 {[%clk 0:01:24]} 29. Qc4 {[%clk 0:01:26]}  Qf5 {[%clk 0:01:22]} 30. Nb5 {[%clk 0:01:22]}  Rc8 {[%clk 0:01:20]} 31. Qe2 {[%clk 0:01:22]}  Ne8 {[%clk 0:01:12]} 32. Ne4 {[%clk 0:01:15]}  Qd7 {[%clk 0:01:08]} 33. Ra7 {[%clk 0:01:08]}  Qd5 {[%clk 0:01:02]} 34. Qa2 {[%clk 0:00:23]}  Qd1+ {[%clk 0:00:59]} 35. Kh2 {[%clk 0:00:23]}  Qd3 {[%clk 0:00:40]} 36. Qxf7+ {[%clk 0:00:21]}  Kh8 {[%clk 0:00:41]} 37. Nbd6 {[%clk 0:00:21]} 1-0


[Site "https://www.chess.com"]

[Event "Titled Tuesday Blitz January 18 2022"]
[White "Halkias, Stelios"]
[Black "Pichot, Alan"]
[WhiteFideId "4201809"]
[BlackFideId "110973"]
[WhiteElo "2453"]
[BlackElo "2543"]
[Result "0-1"]
[Round "03"]
[TimeControl "180+1"]
[Date "2022.01.18"]
[WhiteClock "0:00:12"]
[BlackClock "0:00:06"]

1. e4 {[%clk 0:03:00]}  c5 {[%clk 0:02:59]} 2. Nc3 {[%clk 0:03:00]}  e6 {[%clk 0:02:57]} 3. Nf3 {[%clk 0:03:00]}  Nc6 {[%clk 0:02:55]} 4. d4 {[%clk 0:02:59]}  cxd4 {[%clk 0:02:56]} 5. Nxd4 {[%clk 0:02:59]}  Qc7 {[%clk 0:02:56]} 6. Be3 {[%clk 0:02:59]}  a6 {[%clk 0:02:56]} 7. Nxc6 {[%clk 0:02:59]}  bxc6 {[%clk 0:02:53]} 8. Qf3 {[%clk 0:02:59]}  Nf6 {[%clk 0:02:49]} 9. Qg3 {[%clk 0:02:51]}  d6 {[%clk 0:02:46]} 10. O-O-O {[%clk 0:02:50]}  Rb8 {[%clk 0:02:43]} 11. Bc4 {[%clk 0:02:49]}  h5 {[%clk 0:02:40]} 12. f3 {[%clk 0:02:42]}  Be7 {[%clk 0:02:26]} 13. Bb3 {[%clk 0:02:37]}  a5 {[%clk 0:02:11]} 14. h4 {[%clk 0:02:07]}  O-O {[%clk 0:01:50]} 15. Bh6 {[%clk 0:01:56]}  Ne8 {[%clk 0:01:50]} 16. Bg5 {[%clk 0:01:56]}  e5 {[%clk 0:01:43]} 17. Bxe7 {[%clk 0:01:51]}  Qxe7 {[%clk 0:01:42]} 18. Qg5 {[%clk 0:01:51]}  Qxg5+ {[%clk 0:01:23]} 19. hxg5 {[%clk 0:01:50]}  g6 {[%clk 0:01:24]} 20. Rd2 {[%clk 0:01:42]}  Be6 {[%clk 0:01:24]} 21. g4 {[%clk 0:01:26]}  Bxb3 {[%clk 0:01:10]} 22. axb3 {[%clk 0:01:25]}  hxg4 {[%clk 0:01:10]} 23. fxg4 {[%clk 0:01:12]}  Rd8 {[%clk 0:01:05]} 24. Rh6 {[%clk 0:00:58]}  f6 {[%clk 0:00:48]} 25. Rdh2 {[%clk 0:00:39]}  Kf7 {[%clk 0:00:40]} 26. Rh7+ {[%clk 0:00:34]}  Ke6 {[%clk 0:00:40]} 27. Ra7 {[%clk 0:00:19]}  fxg5 {[%clk 0:00:39]} 28. Rhh7 {[%clk 0:00:19]}  Kf6 {[%clk 0:00:24]} 29. Nd1 {[%clk 0:00:16]}  d5 {[%clk 0:00:23]} 30. exd5 {[%clk 0:00:15]}  cxd5 {[%clk 0:00:24]} 31. Ne3 {[%clk 0:00:14]}  Rd6 {[%clk 0:00:19]} 32. c4 {[%clk 0:00:12]}  dxc4 {[%clk 0:00:12]} 33. bxc4 {[%clk 0:00:11]}  e4 {[%clk 0:00:12]} 34. Rae7 {[%clk 0:00:10]}  Re6 {[%clk 0:00:12]} 35. Nd5+ {[%clk 0:00:09]}  Ke5 {[%clk 0:00:12]} 36. Rxe6+ {[%clk 0:00:09]}  Kxe6 {[%clk 0:00:13]} 37. Re7+ {[%clk 0:00:09]}  Kd6 {[%clk 0:00:13]} 38. Rxe4 {[%clk 0:00:10]}  Ng7 {[%clk 0:00:12]} 39. Re2 {[%clk 0:00:09]}  Ne6 {[%clk 0:00:11]} 40. Rd2 {[%clk 0:00:08]}  Kc5 {[%clk 0:00:11]} 41. b3 {[%clk 0:00:08]}  Nd4 {[%clk 0:00:11]} 42. Kb2 {[%clk 0:00:09]}  Rf3 {[%clk 0:00:11]} 43. Nc3 {[%clk 0:00:09]}  Nc6 {[%clk 0:00:07]} 44. Ne4+ {[%clk 0:00:08]}  Kb4 {[%clk 0:00:05]} 45. Rd5 {[%clk 0:00:08]}  Rxb3+ {[%clk 0:00:05]} 46. Kc2 {[%clk 0:00:09]}  Rf3 {[%clk 0:00:02]} 47. Rb5+ {[%clk 0:00:09]}  Kxc4 {[%clk 0:00:02]} 48. Rc5+ {[%clk 0:00:09]}  Kd4 {[%clk 0:00:02]} 49. Rxc6 {[%clk 0:00:10]}  Kxe4 {[%clk 0:00:02]} 50. Rxg6 {[%clk 0:00:11]}  Kf4 {[%clk 0:00:03]} 51. Ra6 {[%clk 0:00:10]}  Ra3 {[%clk 0:00:03]} 52. Kd2 {[%clk 0:00:09]}  Kxg4 {[%clk 0:00:03]} 53. Ke2 {[%clk 0:00:09]}  Kg3 {[%clk 0:00:03]} 54. Kf1 {[%clk 0:00:10]}  g4 {[%clk 0:00:04]} 55. Re6 {[%clk 0:00:09]}  Ra1+ {[%clk 0:00:04]} 56. Ke2 {[%clk 0:00:09]}  Kg2 {[%clk 0:00:04]} 57. Rg6 {[%clk 0:00:10]}  g3 {[%clk 0:00:05]} 58. Kd3 {[%clk 0:00:10]}  Ra3+ {[%clk 0:00:04]} 59. Ke4 {[%clk 0:00:10]}  Ra2 {[%clk 0:00:04]} 60. Kf4 {[%clk 0:00:10]}  Kf2 {[%clk 0:00:05]} 61. Rxg3 {[%clk 0:00:10]}  Ra4+ {[%clk 0:00:04]} 62. Ke5 {[%clk 0:00:10]}  Kxg3 {[%clk 0:00:05]} 63. Kd5 {[%clk 0:00:11]}  Rb4 {[%clk 0:00:05]} 64. Kc5 {[%clk 0:00:12]}  Rb8 {[%clk 0:00:06]} 0-1


[Site "https://www.chess.com"]

[Event "Titled Tuesday Blitz January 18 2022"]
[White "Hamley, Ryan"]
[Black "Corrales Jimenez, Fidel"]
[WhiteFideId "30959497"]
[BlackFideId "3506690"]
[WhiteElo "2505"]
[BlackElo "2541"]
[Result "0-1"]
[Round "03"]
[TimeControl "180+1"]
[Date "2022.01.18"]
[WhiteClock "0:00:15"]
[BlackClock "0:01:18"]

1. e4 {[%clk 0:03:00]}  c5 {[%clk 0:02:54]} 2. Nf3 {[%clk 0:03:00]}  e6 {[%clk 0:02:52]} 3. g3 {[%clk 0:02:57]}  Nc6 {[%clk 0:02:52]} 4. Bg2 {[%clk 0:02:56]}  g6 {[%clk 0:02:52]} 5. O-O {[%clk 0:02:56]}  Bg7 {[%clk 0:02:52]} 6. c3 {[%clk 0:02:56]}  Nge7 {[%clk 0:02:51]} 7. d4 {[%clk 0:02:56]}  cxd4 {[%clk 0:02:51]} 8. cxd4 {[%clk 0:02:57]}  d5 {[%clk 0:02:52]} 9. e5 {[%clk 0:02:54]}  Qb6 {[%clk 0:02:52]} 10. Nc3 {[%clk 0:02:34]}  a6 {[%clk 0:02:53]} 11. b3 {[%clk 0:02:33]}  Nf5 {[%clk 0:02:53]} 12. Ne2 {[%clk 0:02:29]}  O-O {[%clk 0:02:42]} 13. g4 {[%clk 0:02:28]}  Nfe7 {[%clk 0:02:41]} 14. Ba3 {[%clk 0:02:26]}  Bd7 {[%clk 0:02:39]} 15. Qd2 {[%clk 0:02:24]}  f6 {[%clk 0:02:37]} 16. Bc5 {[%clk 0:02:17]}  Qd8 {[%clk 0:02:36]} 17. exf6 {[%clk 0:02:12]}  Rxf6 {[%clk 0:02:37]} 18. Ne5 {[%clk 0:02:06]}  Nxe5 {[%clk 0:02:36]} 19. dxe5 {[%clk 0:02:06]}  Rf7 {[%clk 0:02:36]} 20. f4 {[%clk 0:02:05]}  Nc6 {[%clk 0:02:35]} 21. Nd4 {[%clk 0:02:03]}  Qh4 {[%clk 0:02:19]} 22. h3 {[%clk 0:01:50]}  Bf8 {[%clk 0:02:20]} 23. Bxf8 {[%clk 0:01:48]}  Raxf8 {[%clk 0:02:21]} 24. Rac1 {[%clk 0:01:48]}  Nxd4 {[%clk 0:02:06]} 25. Qxd4 {[%clk 0:01:48]}  Bb5 {[%clk 0:02:06]} 26. Rf3 {[%clk 0:01:43]}  g5 {[%clk 0:02:06]} 27. f5 {[%clk 0:01:24]}  Rxf5 {[%clk 0:01:54]} 28. Rxf5 {[%clk 0:01:15]}  Rxf5 {[%clk 0:01:54]} 29. Qb6 {[%clk 0:01:05]}  Rf7 {[%clk 0:01:49]} 30. Qxe6 {[%clk 0:01:04]}  Qf2+ {[%clk 0:01:45]} 31. Kh1 {[%clk 0:01:03]}  Bd7 {[%clk 0:01:40]} 32. Qxd5 {[%clk 0:00:57]}  Qf4 {[%clk 0:01:30]} 33. Rd1 {[%clk 0:00:32]}  Bc6 {[%clk 0:01:29]} 34. Qd8+ {[%clk 0:00:32]}  Rf8 {[%clk 0:01:30]} 35. Qd2 {[%clk 0:00:27]}  Bxg2+ {[%clk 0:01:29]} 36. Qxg2 {[%clk 0:00:27]}  b5 {[%clk 0:01:22]} 37. e6 {[%clk 0:00:25]}  Qe5 {[%clk 0:01:20]} 38. Rd5 {[%clk 0:00:17]}  Qe1+ {[%clk 0:01:19]} 39. Kh2 {[%clk 0:00:17]}  Rf2 {[%clk 0:01:20]} 40. Rxg5+ {[%clk 0:00:15]}  Kh8 {[%clk 0:01:18]} 0-1


[Site "https://www.chess.com"]

[Event "Titled Tuesday Blitz January 18 2022"]
[White "Holt, Conrad"]
[Black "Gubajdullin, Alexei"]
[WhiteFideId "2034387"]
[BlackFideId "4141202"]
[WhiteElo "2586"]
[BlackElo "2268"]
[Result "0-1"]
[Round "03"]
[TimeControl "180+1"]
[Date "2022.01.18"]
[WhiteClock "0:00:09"]
[BlackClock "0:00:13"]

1. d4 {[%clk 0:03:00]}  Nf6 {[%clk 0:02:51]} 2. c4 {[%clk 0:03:01]}  g6 {[%clk 0:02:50]} 3. Nc3 {[%clk 0:03:01]}  Bg7 {[%clk 0:02:50]} 4. e4 {[%clk 0:03:01]}  d6 {[%clk 0:02:50]} 5. Nf3 {[%clk 0:03:02]}  O-O {[%clk 0:02:50]} 6. h3 {[%clk 0:03:02]}  Na6 {[%clk 0:02:50]} 7. Bg5 {[%clk 0:03:02]}  h6 {[%clk 0:02:45]} 8. Be3 {[%clk 0:03:02]}  c5 {[%clk 0:02:43]} 9. d5 {[%clk 0:03:00]}  e6 {[%clk 0:02:42]} 10. Be2 {[%clk 0:02:56]}  exd5 {[%clk 0:02:41]} 11. cxd5 {[%clk 0:02:56]}  Re8 {[%clk 0:02:40]} 12. Nd2 {[%clk 0:02:56]}  Nc7 {[%clk 0:02:34]} 13. a4 {[%clk 0:02:52]}  b6 {[%clk 0:02:26]} 14. O-O {[%clk 0:02:51]}  g5 {[%clk 0:02:22]} 15. Qc2 {[%clk 0:02:48]}  Nd7 {[%clk 0:02:20]} 16. f4 {[%clk 0:02:37]}  gxf4 {[%clk 0:02:19]} 17. Rxf4 {[%clk 0:02:36]}  Ne5 {[%clk 0:02:16]} 18. Raf1 {[%clk 0:02:34]}  Rf8 {[%clk 0:02:15]} 19. Nc4 {[%clk 0:02:23]}  Ng6 {[%clk 0:02:03]} 20. R4f2 {[%clk 0:02:17]}  Ba6 {[%clk 0:02:02]} 21. Qd2 {[%clk 0:02:12]}  Kh7 {[%clk 0:01:58]} 22. Rf5 {[%clk 0:02:11]}  Bxc4 {[%clk 0:01:54]} 23. Bxc4 {[%clk 0:02:10]}  Qh4 {[%clk 0:01:42]} 24. Rxf7 {[%clk 0:02:03]}  Rxf7 {[%clk 0:01:28]} 25. Rxf7 {[%clk 0:02:04]}  Ne5 {[%clk 0:01:26]} 26. Rxc7 {[%clk 0:01:57]}  Nxc4 {[%clk 0:01:26]} 27. Qd3 {[%clk 0:01:28]}  Qe1+ {[%clk 0:01:21]} 28. Kh2 {[%clk 0:01:27]}  Nxe3 {[%clk 0:01:20]} 29. e5+ {[%clk 0:01:02]}  Kh8 {[%clk 0:01:17]} 30. Rxg7 {[%clk 0:01:01]}  Kxg7 {[%clk 0:01:11]} 31. e6 {[%clk 0:01:01]}  Rf8 {[%clk 0:00:54]} 32. e7 {[%clk 0:00:30]}  Re8 {[%clk 0:00:42]} 33. Nb5 {[%clk 0:00:29]}  Rxe7 {[%clk 0:00:34]} 34. Nxd6 {[%clk 0:00:27]}  Nf1+ {[%clk 0:00:26]} 35. Kh1 {[%clk 0:00:23]}  Ng3+ {[%clk 0:00:21]} 36. Kh2 {[%clk 0:00:23]}  Nf1+ {[%clk 0:00:21]} 37. Kh1 {[%clk 0:00:23]}  Ne3+ {[%clk 0:00:16]} 38. Kh2 {[%clk 0:00:23]}  Qf2 {[%clk 0:00:15]} 39. Nf5+ {[%clk 0:00:13]}  Nxf5 {[%clk 0:00:14]} 40. d6 {[%clk 0:00:11]}  Qf4+ {[%clk 0:00:13]} 41. Kg1 {[%clk 0:00:09]}  Re1+ {[%clk 0:00:13]} 0-1


[Site "https://www.chess.com"]

[Event "Titled Tuesday Blitz January 18 2022"]
[White "Jobava, Baadur"]
[Black "Kavyev, Ruslan"]
[WhiteFideId "13601520"]
[BlackFideId "34110981"]
[WhiteElo "2617"]
[BlackElo "2182"]
[Result "1-0"]
[Round "03"]
[TimeControl "180+1"]
[Date "2022.01.18"]
[WhiteClock "0:00:36"]
[BlackClock "0:00:11"]

1. d4 {[%clk 0:03:00]}  Nf6 {[%clk 0:03:00]} 2. Nc3 {[%clk 0:03:00]}  d5 {[%clk 0:02:59]} 3. Bf4 {[%clk 0:03:01]}  a6 {[%clk 0:02:58]} 4. e3 {[%clk 0:03:01]}  e6 {[%clk 0:02:54]} 5. a3 {[%clk 0:03:00]}  c5 {[%clk 0:02:54]} 6. h3 {[%clk 0:03:00]}  Nc6 {[%clk 0:02:54]} 7. Nf3 {[%clk 0:03:01]}  Be7 {[%clk 0:02:51]} 8. dxc5 {[%clk 0:03:01]}  Bxc5 {[%clk 0:02:51]} 9. Bd3 {[%clk 0:03:01]}  O-O {[%clk 0:02:51]} 10. O-O {[%clk 0:03:01]}  b5 {[%clk 0:02:51]} 11. e4 {[%clk 0:03:01]}  dxe4 {[%clk 0:02:17]} 12. Nxe4 {[%clk 0:03:02]}  Be7 {[%clk 0:02:18]} 13. Qe2 {[%clk 0:02:57]}  Bb7 {[%clk 0:02:17]} 14. Rad1 {[%clk 0:02:56]}  Qb6 {[%clk 0:02:14]} 15. Nfg5 {[%clk 0:02:54]}  g6 {[%clk 0:02:07]} 16. c3 {[%clk 0:02:27]}  Rad8 {[%clk 0:01:57]} 17. Nxf6+ {[%clk 0:02:27]}  Bxf6 {[%clk 0:01:57]} 18. Ne4 {[%clk 0:02:28]}  Bg7 {[%clk 0:01:54]} 19. Bg5 {[%clk 0:02:27]}  f6 {[%clk 0:01:47]} 20. Be3 {[%clk 0:02:27]}  Qc7 {[%clk 0:01:47]} 21. Nc5 {[%clk 0:02:16]}  Bc8 {[%clk 0:01:46]} 22. a4 {[%clk 0:02:15]}  Qb8 {[%clk 0:01:33]} 23. axb5 {[%clk 0:02:14]}  axb5 {[%clk 0:01:33]} 24. Bxb5 {[%clk 0:02:14]}  Ne5 {[%clk 0:01:31]} 25. b4 {[%clk 0:02:09]}  f5 {[%clk 0:01:20]} 26. Bf4 {[%clk 0:01:50]}  h6 {[%clk 0:00:54]} 27. Bc4 {[%clk 0:01:44]}  g5 {[%clk 0:00:50]} 28. Nxe6 {[%clk 0:01:19]}  Rxd1 {[%clk 0:00:30]} 29. Nxf8+ {[%clk 0:01:12]}  Kxf8 {[%clk 0:00:30]} 30. Rxd1 {[%clk 0:01:13]}  gxf4 {[%clk 0:00:31]} 31. Rd8+ {[%clk 0:00:54]}  Ke7 {[%clk 0:00:31]} 32. Rg8 {[%clk 0:00:55]}  Kf6 {[%clk 0:00:26]} 33. Ba6 {[%clk 0:00:49]}  f3 {[%clk 0:00:20]} 34. gxf3 {[%clk 0:00:49]}  Qa8 {[%clk 0:00:17]} 35. Rxc8 {[%clk 0:00:42]}  Nxf3+ {[%clk 0:00:15]} 36. Kh1 {[%clk 0:00:42]}  Qd5 {[%clk 0:00:15]} 37. Bc4 {[%clk 0:00:41]}  Qb7 {[%clk 0:00:14]} 38. Qe6+ {[%clk 0:00:36]}  Kg5 {[%clk 0:00:15]} 39. Qc6 {[%clk 0:00:37]}  Qxc6 {[%clk 0:00:11]} 40. Rxc6 {[%clk 0:00:37]}  Bxc3 {[%clk 0:00:11]} 41. Bd5 {[%clk 0:00:36]} 1-0


[Site "https://www.chess.com"]